fUSD/lending_fUSD_20240117
["ID","MTS","AMOUNT","RATE_DAILY","PERIOD"]
[311863944,1705477846305,-500.0,0.00021917,2]
[311863946,1705477846314,-500.0,0.00021917,2]
[311863947,1705477846324,-1127.98,0.00021917,2]
[311863948,1705477846334,-862.01,0.00021917,2]
[311863949,1705477846343,-500.0,0.00021917,2]
[311863950,1705477846352,-500.0,0.00021917,2]
[311863951,1705477846362,-832.26,0.00021917,2]
[311863953,1705477846371,-745.36,0.00021917,2]
[311863955,1705477846380,-1581.16,0.00021917,2]
[311863957,1705477846390,-500.0,0.00021917,2]
[311863959,1705477846399,-500.0,0.00021917,2]
[311863961,1705477846409,-2018.28,0.00021917,2]
[311863963,1705477846418,-500.0,0.00021917,2]
[311863965,1705477846428,-500.0,0.00021917,2]
[311863967,1705477846437,-500.0,0.00021917,2]
[311863969,1705477846447,-797.05,0.00021917,2]
[311863971,1705477846456,-560.12,0.00021917,2]
[311863973,1705477846465,-844.85,0.00021917,2]
[311863974,1705477846474,-667.58,0.00021917,2]
[311863976,1705477846483,-1357.97,0.00021917,2]
[311863978,1705477846492,-566.27,0.00021917,2]
[311863980,1705477846501,-500.0,0.00021917,2]
[311863981,1705477846510,-500.0,0.00021917,2]
[311863982,1705477846519,-1166.15,0.00021917,2]
[311863983,1705477846528,-500.0,0.00021917,2]
[311863984,1705477846537,-500.0,0.00021917,2]
[311863985,1705477846546,-448.98,0.00021917,2]
[311863986,1705477846556,-1504.83,0.00021917,2]
[311863987,1705477846565,-502.50703087,0.00021917,2]
[311863988,1705477846574,-500.0,0.00021917,2]
[311863989,1705477846583,-759.77,0.00021917,2]
[311863990,1705477846592,-935.33,0.00021917,2]
[311863991,1705477846601,-500.0,0.00021917,2]
[311863992,1705477846609,-500.0,0.00021917,2]
[311863993,1705477846618,-1204.62,0.00021917,2]
[311863994,1705477846627,-500.0,0.00021917,2]
[311863995,1705477846636,-502.28908239,0.00021917,2]
[311863996,1705477846648,-1034.46,0.00021917,2]
[311863997,1705477846656,-500.0,0.00021917,2]
[311863998,1705477846666,-1074.53,0.00021917,2]
[311863999,1705477846675,-943.43,0.00021917,2]
[311864000,1705477846684,-500.0,0.00021917,2]
[311864001,1705477846694,-500.0,0.00021917,2]
[311864002,1705477846703,-943.51,0.00021917,2]
[311864003,1705477846712,-500.0,0.00021917,2]
[311864004,1705477846721,-591.5,0.00021917,2]
[311864005,1705477846730,-870.11,0.00021917,2]
[311864006,1705477846740,-1344.84,0.00021917,2]
[311864008,1705477846754,-500.0,0.00021917,2]
[311864010,1705477846763,-635.70015163,0.00021917,2]
[311864012,1705477846773,-1150.77,0.00021917,2]
[311864013,1705477846782,-500.0,0.00021917,2]
[311864014,1705477846794,-500.0,0.00021917,2]
[311864015,1705477846803,-500.0,0.00021917,2]
[311864017,1705477846812,-500.0,0.00021917,2]
[311864019,1705477846822,-641.08,0.00021917,2]
[311864021,1705477846834,-393.59350604,0.00021917,2]
[311864023,1705477846842,-500.0,0.00021917,2]
[311864025,1705477846852,-500.0,0.00021917,2]
[311864027,1705477846861,-1059.01,0.00021917,2]
[311864029,1705477846870,-1394.61,0.00021917,2]
[311864030,1705477846878,-1243.24,0.00021917,2]
[311864031,1705477846887,-1155.73,0.00021917,2]
[311864032,1705477846897,-500.0,0.00021917,2]
[311864033,1705477846906,-915.18,0.00021917,2]
[311864034,1705477846916,-500.0,0.00021917,2]
[311864035,1705477846924,-500.0,0.00021917,2]
[311864036,1705477846934,-500.0,0.00021917,2]
[311864037,1705477846942,-500.0,0.00021917,2]
[311864038,1705477846951,-500.0,0.00021917,2]
[311864039,1705477846960,-1179.19,0.00021917,2]
[311864040,1705477846969,-616.59,0.00021917,2]
[311864041,1705477846979,-850.8,0.00021917,2]
[311864042,1705477846988,-500.0,0.00021917,2]
[311864043,1705477846997,-1125.75,0.00021917,2]
[311864044,1705477847006,-1306.76,0.00021917,2]
[311864045,1705477847015,-522.39040119,0.00021917,2]
[311864046,1705477847024,-500.0,0.00021917,2]
[311864047,1705477847033,-515.83,0.00021917,2]
[311864048,1705477847042,-500.0,0.00021917,2]
[311864049,1705477847051,-500.0,0.00021917,2]
[311864050,1705477847060,-618.9,0.00021917,2]
[311864051,1705477847069,-648.82,0.00021917,2]
[311864052,1705477847078,-924.1,0.00021917,2]
[311864053,1705477847087,-500.0,0.00021917,2]
[311864054,1705477847096,-500.0,0.00021917,2]
[311864055,1705477847105,-776.29,0.00021917,2]
[311864056,1705477847114,-905.38,0.00021917,2]
[311864057,1705477847123,-585.87,0.00021917,2]
[311864058,1705477847132,-500.0,0.00021917,2]
[311864059,1705477847141,-1456.23,0.00021917,2]
[311864060,1705477847151,-500.0,0.00021917,2]
[311864061,1705477847161,-500.0,0.00021917,2]
[311864062,1705477847169,-500.0,0.00021917,2]
[311864063,1705477847179,-500.0,0.00021917,2]
[311864064,1705477847188,-500.0,0.00021917,2]
[311864065,1705477847197,-1402.5,0.00021917,2]
[311864066,1705477847206,-1121.65,0.00021917,2]
[311864067,1705477847215,-500.0,0.00021917,2]
[311864068,1705477847225,-997.25,0.00021917,7]
[311864069,1705477847234,-250.0,0.00021917,2]
[311864070,1705477847243,-1282.83,0.00021917,2]
[311864071,1705477847253,-2299.52,0.00021917,2]
[311864072,1705477847262,-1222.37,0.00021917,2]
[311864073,1705477847271,-500.0,0.00021917,2]
[311864074,1705477847281,-1003.18,0.00021917,2]
[311864075,1705477847290,-500.0,0.00021917,2]
[311864076,1705477847299,-929.36,0.00021917,2]
[311864077,1705477847308,-500.0,0.00021917,2]
[311864078,1705477847317,-540.06,0.00021917,2]
[311864079,1705477847327,-2592.08,0.00021917,2]
[311864080,1705477847336,-500.0,0.00021917,2]
[311864081,1705477847346,-500.0,0.00021917,2]
[311864082,1705477847354,-1458.88,0.00021917,2]
[311864083,1705477847364,-685.74,0.00021917,2]
[311864084,1705477847373,-500.0,0.00021917,2]
[311864085,1705477847382,-500.0,0.00021917,2]
[311864086,1705477847391,-500.0,0.00021917,2]
[311864087,1705477847401,-1105.53,0.00021917,2]
[311864088,1705477847410,-500.0,0.00021917,2]
[311864089,1705477847419,-1251.43,0.00021917,2]
[311864090,1705477847428,-1292.0,0.00021917,2]
[311864091,1705477847438,-915.89,0.00021917,2]
[311864092,1705477847447,-618.49,0.00021917,2]
[311864093,1705477847457,-500.0,0.00021917,2]
[311864094,1705477847466,-500.0,0.00021917,2]
[311864095,1705477847475,-1511.28,0.00021917,2]
[311864096,1705477847484,-500.0,0.00021917,2]
[311864097,1705477847493,-1336.77,0.00021917,2]
[311864098,1705477847503,-797.21,0.00021917,2]
[311864099,1705477847512,-500.0,0.00021917,2]
[311864100,1705477847521,-1247.79,0.00021917,2]
[311864101,1705477847530,-500.0,0.00021917,2]
[311864102,1705477847539,-2678.84,0.00021917,2]
[311864103,1705477847549,-500.0,0.00021917,2]
[311864104,1705477847558,-500.0,0.00021917,2]
[311864105,1705477847566,-1098.46,0.00021917,2]
[311864106,1705477847576,-1144.17,0.00021917,2]
[311864107,1705477847585,-1081.63,0.00021917,2]
[311864108,1705477847594,-814.19,0.00021917,2]
[311864109,1705477847603,-936.34,0.00021917,2]
[311864110,1705477847612,-603.12,0.00021917,2]
[311864111,1705477847621,-1589.39,0.00021917,2]
[311864112,1705477847630,-878.58,0.00021917,2]
[311864113,1705477847639,-500.0,0.00021917,2]
[311864114,1705477847649,-551.33342972,0.00021917,2]
[311864115,1705477847658,-670.04,0.00021917,2]
[311864116,1705477847668,-901.38,0.00021917,2]
[311864117,1705477847677,-1221.1,0.00021917,2]
[311864118,1705477847687,-576.52,0.00021917,2]
[311864119,1705477847696,-500.0,0.00021917,2]
[311864120,1705477847705,-500.0,0.00021917,2]
[311864121,1705477847715,-538.23,0.00021917,2]
[311864122,1705477847723,-3002.46,0.00021917,2]
[311864123,1705477847733,-500.0,0.00021917,2]
[311864124,1705477847746,-500.0,0.00021917,2]
[311864125,1705477847755,-1416.39,0.00021917,2]
[311864126,1705477847764,-500.0,0.00021917,2]
[311864127,1705477847773,-572.78,0.00021917,2]
[311864128,1705477847783,-1066.77,0.00021917,2]
[311864129,1705477847792,-500.0,0.00021917,2]
[311864130,1705477847801,-500.0,0.00021917,2]
[311864131,1705477847812,-500.0,0.00021917,2]
[311864132,1705477847822,-502.00641405,0.00021917,2]
[311864133,1705477847831,-618.75,0.00021917,2]
[311864134,1705477847840,-500.0,0.00021917,2]
[311864135,1705477847849,-1409.24,0.00021917,2]
[311864136,1705477847858,-1756.17,0.00021917,2]
[311864137,1705477847867,-500.0,0.00021917,2]
[311864138,1705477847876,-500.0,0.00021917,2]
[311864139,1705477847886,-500.0,0.00021917,2]
[311864140,1705477847895,-500.0,0.00021917,2]
[311864141,1705477847904,-1432.1,0.00021917,2]
[311864142,1705477847915,-648.14,0.00021917,2]
[311864143,1705477847923,-2092.17,0.00021917,2]
[311864144,1705477847932,-500.0,0.00021917,2]
[311864145,1705477847942,-500.0,0.00021917,2]
[311864146,1705477847951,-500.0,0.00021917,2]
[311864147,1705477847959,-919.57,0.00021917,2]
[311864148,1705477847968,-500.0,0.00021917,2]
[311864149,1705477847978,-1586.24,0.00021917,2]
[311864150,1705477847987,-500.0,0.00021917,2]
[311864151,1705477847996,-500.0,0.00021917,2]
[311864152,1705477848006,-539.78,0.00021917,2]
[311864153,1705477848014,-1116.45,0.00021917,2]
[311864154,1705477848023,-592.42,0.00021917,2]
[311864155,1705477848037,-1328.69,0.00021917,2]
[311864156,1705477848046,-500.0,0.00021917,2]
[311864157,1705477848055,-963.39,0.00021917,2]
[311864158,1705477848065,-500.0,0.00021917,2]
[311864159,1705477848075,-234.15402266,0.00021917,2]
[311864160,1705477848084,-1502.54,0.00021917,2]
[311864161,1705477848093,-508.11510036,0.00021917,2]
[311864162,1705477848103,-500.0,0.00021917,2]
[311864163,1705477848112,-500.0,0.00021917,2]
[311864164,1705477848121,-1090.78,0.00021917,2]
[311864165,1705477848130,-500.0,0.00021917,2]
[311864166,1705477848139,-500.0,0.00021917,2]
[311864167,1705477848150,-500.0,0.00021917,2]
[311864168,1705477848159,-1309.14,0.00021917,2]
[311864169,1705477848168,-927.29,0.00021917,2]
[311864170,1705477848178,-500.0,0.00021917,2]
[311864171,1705477848187,-500.0,0.00021917,2]
[311864172,1705477848197,-500.0,0.00021917,2]
[311864173,1705477848206,-500.0,0.00021917,2]
[311864174,1705477848216,-1117.77,0.00021917,2]
[311864175,1705477848225,-500.0,0.00021917,2]
[311864176,1705477848235,-500.0,0.00021917,2]
[311864177,1705477848244,-792.11,0.00021917,2]
[311864178,1705477848254,-500.0,0.00021917,2]
[311864179,1705477848263,-500.0,0.00021917,2]
[311864180,1705477848272,-500.0,0.00021917,2]
[311864181,1705477848282,-500.0,0.00021917,2]
[311864182,1705477848291,-500.0,0.00021917,2]
[311864183,1705477848300,-500.0,0.00021917,2]
[311864184,1705477848310,-500.0,0.00021917,2]
[311864185,1705477848319,-895.91,0.00021917,2]
[311864186,1705477848329,-500.0,0.00021917,2]
[311864187,1705477848338,-998.3,0.00021917,2]
[311864188,1705477848348,-500.0,0.00021917,2]
[311864189,1705477848357,-500.0,0.00021917,2]
[311864190,1705477848366,-500.0,0.00021917,2]
[311864191,1705477848376,-1124.92,0.00021917,2]
[311864192,1705477848385,-500.0,0.00021917,2]
[311864193,1705477848395,-500.0,0.00021917,2]
[311864194,1705477848405,-500.0,0.00021917,2]
[311864195,1705477848414,-500.0,0.00021917,2]
[311864196,1705477848423,-396.7054665,0.00021917,2]
[311864197,1705477848433,-500.0,0.00021917,2]
[311864198,1705477848442,-500.0,0.00021917,2]
[311864199,1705477848451,-1161.82,0.00021917,2]
[311864200,1705477848461,-500.0,0.00021917,2]
[311864201,1705477848471,-511.21,0.00021917,2]
[311864202,1705477848480,-647.56,0.00021917,2]
[311864203,1705477848490,-925.17,0.00021917,2]
[311864204,1705477848499,-1119.95,0.00021917,2]
[311864205,1705477848509,-559.72,0.00021917,2]
[311864206,1705477848518,-1093.98,0.00021917,2]
[311864207,1705477848528,-500.0,0.00021917,2]
[311864208,1705477848538,-500.0,0.00021917,2]
[311864209,1705477848552,-680.48,0.00021917,2]
[311864210,1705477848561,-500.0,0.00021917,2]
[311864211,1705477848571,-500.0,0.00021917,2]
[311864212,1705477848581,-824.22,0.00021917,2]
[311864213,1705477848590,-500.0,0.00021917,2]
[311864214,1705477848600,-578.75,0.00021917,2]
[311864215,1705477848610,-500.0,0.00021917,2]
[311864216,1705477848620,-500.0,0.00021917,2]
[311864217,1705477848843,-792.87,0.00021917,2]
[311864218,1705477848858,-1342.3,0.00021917,2]
[311864219,1705477848868,-628.7,0.00021917,2]
[311864220,1705477848878,-895.11,0.00021917,2]
[311864221,1705477848888,-500.0,0.00021917,2]
[311864222,1705477848897,-500.0,0.00021917,2]
[311864223,1705477848907,-500.0,0.00021917,2]
[311864224,1705477848918,-1051.53,0.00021917,2]
[311864225,1705477848928,-500.0,0.00021917,2]
[311864226,1705477848939,-1176.32,0.00021917,2]
[311864227,1705477848949,-510.15044332,0.00021917,2]
[311864228,1705477848960,-500.0,0.00021917,2]
[311864229,1705477848970,-500.0,0.00021917,2]
[311864230,1705477848980,-1288.48,0.00021917,2]
[311864231,1705477848989,-610.78,0.00021917,2]
[311864232,1705477848999,-2357.13,0.00021917,2]
[311864233,1705477849008,-3875.85,0.00021917,2]
[311864234,1705477849017,-918.03,0.00021917,2]
[311864235,1705477849027,-500.0,0.00021917,2]
[311864236,1705477849037,-392.19844474,0.00021917,2]
[311864237,1705477849046,-500.0,0.00021917,2]
[311864238,1705477849055,-924.74,0.00021917,2]
[311864239,1705477849065,-500.0,0.00021917,2]
[311864240,1705477849075,-500.0,0.00021917,2]
[311864241,1705477849085,-830.89,0.00021917,2]
[311864242,1705477849095,-945.59,0.00021917,2]
[311864243,1705477849104,-615.83,0.00021917,2]
[311864244,1705477849113,-500.0,0.00021917,2]
[311864245,1705477849123,-738.36,0.00021917,2]
[311864246,1705477849132,-500.0,0.00021917,2]
[311864247,1705477849141,-500.0,0.00021917,2]
[311864248,1705477849151,-500.0,0.00021917,2]
[311864249,1705477849160,-500.0,0.00021917,2]
[311864250,1705477849169,-1389.72,0.00021917,2]
[311864251,1705477849179,-2654.24,0.00021917,2]
[311864252,1705477849188,-750.66,0.00021917,2]
[311864253,1705477849198,-1556.41,0.00021917,2]
[311864254,1705477849207,-2549.34,0.00021917,2]
[311864255,1705477849216,-500.0,0.00021917,2]
[311864256,1705477849225,-672.52,0.00021917,2]
[311864257,1705477849234,-549.32,0.00021917,2]
[311864258,1705477849243,-500.0,0.00021917,2]
[311864259,1705477849253,-565.09,0.00021917,2]
[311864260,1705477849262,-500.0,0.00021917,2]
[311864261,1705477849272,-1085.43,0.00021917,2]
[311864262,1705477849281,-3157.36,0.00021917,2]
[311864263,1705477849291,-500.0,0.00021917,2]
[311864264,1705477849300,-2274.43,0.00021917,2]
[311864265,1705477849309,-1664.12,0.00021917,2]
[311864266,1705477849319,-500.0,0.00021917,2]
[311864267,1705477849328,-2676.42,0.00021917,2]
[311864268,1705477849338,-500.0,0.00021917,2]
[311864269,1705477849347,-500.0,0.00021917,2]
[311864270,1705477849356,-500.0,0.00021917,2]
[311864271,1705477849366,-340.89,0.00021917,2]
[311864272,1705477849375,-922.72,0.00021917,2]
[311864273,1705477849385,-941.17,0.00021917,2]
[311864274,1705477849394,-710.39,0.00021917,2]
[311864275,1705477849405,-942.21,0.00021917,2]
[311864276,1705477849415,-1858.36,0.00021917,2]
[311864277,1705477849424,-1333.09,0.00021917,2]
[311864278,1705477849434,-500.0,0.00021917,2]
[311864279,1705477849443,-8795.37,0.00021917,2]
[311864280,1705477849453,-531.3,0.00021917,2]
[311864281,1705477849462,-1314.75,0.00021917,2]
[311864282,1705477849473,-500.0,0.00021917,2]
[311864283,1705477849490,-500.0,0.00021917,2]
[311864284,1705477849503,-891.37,0.00021917,2]
[311864285,1705477849514,-844.5,0.00021917,2]
[311864286,1705477849524,-3199.36,0.00021917,2]
[311864287,1705477849535,-500.0,0.00021917,2]
[311864288,1705477849545,-500.0,0.00021917,2]
[311864289,1705477849555,-2133.79,0.00021917,2]
[311864290,1705477849565,-739.15,0.00021917,2]
[311864291,1705477849575,-1265.13,0.00021917,2]
[311864292,1705477849584,-500.0,0.00021917,2]
[311864293,1705477849594,-4658.93,0.00021917,2]
[311864294,1705477849604,-689.52,0.00021917,2]
[311864295,1705477849614,-6241.73,0.00021917,2]
[311864296,1705477849625,-959.29,0.00021917,2]
[311864297,1705477849635,-696.76,0.00021917,2]
[311864298,1705477849644,-12795.34,0.00021917,2]
[311864299,1705477849655,-500.0,0.00021917,2]
[311864300,1705477849665,-612.78602886,0.00021917,2]
[311864301,1705477849674,-500.0,0.00021917,2]
[311864302,1705477849684,-500.0,0.00021917,2]
[311864303,1705477849694,-500.0,0.00021917,2]
[311864304,1705477849704,-500.0,0.00021917,2]
[311864305,1705477849714,-500.0,0.00021917,2]
[311864306,1705477849723,-1419.74,0.00021917,2]
[311864307,1705477849734,-500.0,0.00021917,2]
[311864308,1705477849745,-10043.39,0.00021917,2]
[311864309,1705477849756,-46593.54,0.00021917,2]
[311864310,1705477849766,-770.5,0.00021917,2]
[311864311,1705477849776,-500.0,0.00021917,2]
[311864312,1705477849787,-500.0,0.00021917,2]
[311864313,1705477849796,-5232.78,0.00021917,2]
[311864314,1705477849806,-632.66330954,0.00021917,2]
[311864315,1705477849816,-911.97,0.00021917,2]
[311864316,1705477849826,-15459.02,0.00021917,2]
[311864317,1705477849835,-603.62,0.00021917,2]
[311864318,1705477849845,-2401.99,0.00021917,2]
[311864319,1705477849854,-500.0,0.00021917,2]
[311864320,1705477849864,-634.52,0.00021917,2]
[311864321,1705477849874,-542.0,0.00021917,2]
[311864322,1705477849884,-500.0,0.00021917,2]
[311864323,1705477849894,-500.0,0.00021917,2]
[311864324,1705477849904,-2536.68,0.00021917,2]
[311864325,1705477849914,-500.0,0.00021917,2]
[311864326,1705477849925,-500.0,0.00021917,2]
[311864327,1705477849935,-500.0,0.00021917,2]
[311864328,1705477849944,-738.15,0.00021917,2]
[311864329,1705477849953,-3022.26,0.00021917,2]
[311864330,1705477849963,-1965.77,0.00021917,2]
[311864331,1705477849973,-1281.77,0.00021917,2]
[311864332,1705477849982,-500.0,0.00021917,2]
[311864333,1705477849992,-924.25,0.00021917,2]
[311864334,1705477850001,-897.96,0.00021917,2]
[311864335,1705477850011,-594.54,0.00021917,2]
[311864336,1705477850021,-1168.51,0.00021917,2]
[311864337,1705477850030,-500.0,0.00021917,2]
[311864338,1705477850040,-7859.09,0.00021917,2]
[311864339,1705477850050,-928.88,0.00021917,2]
[311864340,1705477850060,-1378.16,0.00021917,2]
[311864341,1705477850070,-3943.16,0.00021917,2]
[311864342,1705477850079,-5138.1,0.00021917,2]
[311864343,1705477850090,-500.0,0.00021917,2]
[311864344,1705477850099,-565.17,0.00021917,2]
[311864345,1705477850109,-2387.26,0.00021917,2]
[311864346,1705477850119,-596.2,0.00021917,2]
[311864347,1705477850128,-625.19,0.00021917,2]
[311864348,1705477850138,-500.0,0.00021917,2]
[311864349,1705477850148,-933.97,0.00021917,2]
[311864350,1705477850159,-500.0,0.00021917,2]
[311864351,1705477850169,-4765.57,0.00021917,2]
[311864352,1705477850179,-500.0,0.00021917,2]
[311864353,1705477850189,-500.0,0.00021917,2]
[311864354,1705477850199,-500.0,0.00021917,2]
[311864355,1705477850209,-655.1,0.00021917,2]
[311864356,1705477850219,-15012.03,0.00021917,2]
[311864357,1705477850229,-1579.75,0.00021917,2]
[311864358,1705477850239,-1994.93,0.00021917,2]
[311864359,1705477850249,-500.0,0.00021917,2]
[311864360,1705477850259,-1507.55,0.00021917,2]
[311864361,1705477850269,-517.24,0.00021917,2]
[311864362,1705477850279,-1812.0,0.00021917,2]
[311864363,1705477850288,-500.0,0.00021917,2]
[311864364,1705477850298,-996.04,0.00021917,2]
[311864365,1705477850308,-536.13,0.00021917,2]
[311864366,1705477850323,-1955.21,0.00021917,2]
[311864367,1705477850333,-500.0,0.00021917,2]
[311864368,1705477850344,-1334.77,0.00021917,2]
[311864369,1705477850354,-648.49,0.00021917,2]
[311864370,1705477850365,-1895.53,0.00021917,2]
[311864371,1705477850376,-500.0,0.00021917,2]
[311864372,1705477850386,-500.0,0.00021917,2]
[311864373,1705477850397,-1411.64,0.00021917,2]
[311864374,1705477850408,-1000.0,0.00021917,2]
[311864375,1705477850419,-2186.75,0.00021917,2]
[311864376,1705477850429,-500.0,0.00021917,2]
[311864377,1705477850439,-1104.45,0.00021917,2]
[311864378,1705477850449,-576.76,0.00021917,2]
[311864379,1705477850459,-500.0,0.00021917,2]
[311864380,1705477850470,-500.0,0.00021917,2]
[311864381,1705477850480,-510.77755883,0.00021917,2]
[311864382,1705477850491,-500.0,0.00021917,2]
[311864383,1705477850501,-1305.3,0.00021917,2]
[311864384,1705477850511,-2016.99,0.00021917,2]
[311864385,1705477850521,-517.39,0.00021917,2]
[311864386,1705477850532,-500.0,0.00021917,2]
[311864387,1705477850543,-16326.15,0.00021917,2]
[311864388,1705477850554,-1481.12,0.00021917,2]
[311864389,1705477850565,-500.0,0.00021917,2]
[311864390,1705477850577,-500.0,0.00021917,2]
[311864391,1705477850587,-1905.42,0.00021917,2]
[311864392,1705477850599,-500.0,0.00021917,2]
[311864393,1705477850610,-862.69,0.00021917,2]
[311864394,1705477850622,-1944.86,0.00021917,2]
[311864395,1705477850634,-500.0,0.00021917,2]
[311864396,1705477850645,-3434.2,0.00021917,2]
[311864397,1705477850659,-1226.04,0.00021917,2]
[311864398,1705477850670,-1949.52,0.00021917,2]
[311864399,1705477850681,-590.84,0.00021917,2]
[311864400,1705477850692,-774.47,0.00021917,2]
[311864401,1705477850702,-833.16,0.00021917,2]
[311864402,1705477850712,-9260.79,0.00021917,2]
[311864403,1705477850723,-500.0,0.00021917,2]
[311864404,1705477850734,-3912.16,0.00021917,2]
[311864405,1705477850746,-500.0,0.00021917,2]
[311864406,1705477850757,-500.0,0.00021917,2]
[311864407,1705477850767,-740.77,0.00021917,2]
[311864408,1705477850778,-500.0,0.00021917,2]
[311864409,1705477850788,-4268.51,0.00021917,2]
[311864410,1705477850798,-1895.82,0.00021917,2]
[311864411,1705477850808,-1741.31,0.00021917,2]
[311864412,1705477850819,-1927.07,0.00021917,2]
[311864413,1705477850829,-867.12,0.00021917,2]
[311864414,1705477850838,-8984.04,0.00021917,2]
[311864415,1705477850848,-2527.85,0.00021917,2]
[311864416,1705477850859,-1059.23,0.00021917,2]
[311864417,1705477850869,-2233.38,0.00021917,2]
[311864418,1705477850878,-1412.15,0.00021917,2]
[311864419,1705477850888,-500.0,0.00021917,2]
[311864420,1705477850898,-500.0,0.00021917,2]
[311864421,1705477850910,-599.64,0.00021917,2]
[311864422,1705477850920,-500.0,0.00021917,2]
[311864423,1705477850930,-2295.86,0.00021917,2]
[311864424,1705477850940,-500.0,0.00021917,2]
[311864425,1705477850950,-4532.0,0.00021917,2]
[311864426,1705477850960,-500.0,0.00021917,2]
[311864427,1705477850970,-1923.88,0.00021917,2]
[311864428,1705477850980,-2382.71,0.00021917,2]
[311864429,1705477850990,-500.0,0.00021917,2]
[311864430,1705477851000,-500.0,0.00021917,2]
[311864431,1705477851010,-500.0,0.00021917,2]
[311864432,1705477851020,-500.0,0.00021917,2]
[311864433,1705477851030,-779.78,0.00021917,2]
[311864434,1705477851040,-500.0,0.00021917,2]
[311864435,1705477851050,-500.0,0.00021917,2]
[311864436,1705477851060,-500.0,0.00021917,2]
[311864437,1705477851070,-1605.61,0.00021917,2]
[311864438,1705477851080,-500.0,0.00021917,2]
[311864439,1705477851089,-500.0,0.00021917,2]
[311864440,1705477851099,-702.38,0.00021917,2]
[311864441,1705477851109,-546.68,0.00021917,2]
[311864442,1705477851119,-919.24,0.00021917,2]
[311864443,1705477851129,-500.0,0.00021917,2]
[311864444,1705477851139,-500.0,0.00021917,2]
[311864445,1705477851148,-802.09,0.00021917,2]
[311864446,1705477851160,-1143.62,0.00021917,2]
[311864447,1705477851170,-5474.62,0.00021917,2]
[311864448,1705477851180,-1164.71,0.00021917,2]
[311864449,1705477851189,-2046.85,0.00021917,2]
[311864450,1705477851623,-500.0,0.00021917,2]
[311864451,1705477851643,-2301.01,0.00021917,2]
[311864452,1705477851652,-857.6,0.00021917,2]
[311864453,1705477851662,-4838.37,0.00021917,2]
[311864454,1705477851671,-500.0,0.00021917,2]
[311864455,1705477851680,-2237.28,0.00021917,2]
[311864456,1705477851689,-606.63,0.00021917,2]
[311864457,1705477851698,-500.0,0.00021917,2]
[311864458,1705477851707,-1304.79,0.00021917,2]
[311864459,1705477851717,-1697.86,0.00021917,2]
[311864460,1705477851727,-500.0,0.00021917,2]
[311864461,1705477851736,-500.0,0.00021917,2]
[311864462,1705477851749,-500.0,0.00021917,2]
[311864463,1705477851758,-932.38,0.00021917,2]
[311864464,1705477851768,-539.59,0.00021917,2]
[311864465,1705477851777,-874.43,0.00021917,2]
[311864466,1705477851787,-500.0,0.00021917,2]
[311864467,1705477851796,-500.0,0.00021917,2]
[311864468,1705477851806,-2706.07,0.00021917,2]